lending/lending_fUSD_20250424
["ID","MTS","AMOUNT","RATE_DAILY","PERIOD"]
[358866964,1745496644391,-355.07411533,0.00024484,2]
[358866965,1745496644401,-201.93277687,0.00024485,2]
[358866966,1745496644411,-249.802067,0.00024485,2]
[358866967,1745496644421,-792.93697501,0.00024485,2]
[358866968,1745496644431,-3793.24948678,0.00024485,2]
[358866969,1745496644440,-8803.92026139,0.00024486,2]
[358866970,1745496644449,-33143.55661038,0.00024486,2]
[358866971,1745496644459,-792.93697501,0.00024488,2]
[358866972,1745496644468,-10557.1030147,0.0002449,2]
[358866973,1745496644478,-8803.92026139,0.00024491,2]
[358866974,1745496644488,-3434.87101252,0.00024492,2]
[358866975,1745496644498,-70921.59359423,0.00024493,2]
[358866976,1745496644507,-4606.70115639,0.00024493,2]
[358866977,1745496644517,-27312.584325,0.00024493,2]
[358866978,1745496644526,-27312.584325,0.00024497,2]
[358866979,1745496644536,-17195.68822789,0.00024497,2]
[358866980,1745496644546,-10557.1030147,0.00024499,2]
[358866981,1745496644557,-201.93277687,0.000245,2]
[358866982,1745496644567,-220.14,0.00024657,2]
[358866983,1745496644577,-1000.0,0.00024658,2]
[358866984,1745496644589,-874.28,0.00024751,2]
[358866985,1745496644598,-239.5316193,0.00024773,2]
[358866986,1745496644610,-600.54793712,0.00024773,2]
[358866987,1745496644620,-500.0,0.00024773,2]
[358866988,1745496644630,-499.24605435,0.00024773,2]
[358866989,1745496644641,-300.0,0.00024794,2]
[358866990,1745496644650,-620996.006173,0.000248,3]
[358866991,1745496644661,-1000.0,0.00024869,2]
[358866992,1745496644673,-500.0,0.00024873,2]
[358866993,1745496644682,-500.0,0.00024873,2]
[358866994,1745496644692,-634.45862756,0.00024873,2]
[358866995,1745496644701,-325.65778398,0.00024873,2]
[358866996,1745496644711,-500.0,0.00024873,2]
[358866997,1745496644720,-500.0,0.00024873,2]
[358866998,1745496644729,-500.0,0.00024873,2]
[358866999,1745496644738,-1217.4295604,0.0002489,2]
[358867000,1745496644747,-151.0,0.000249,7]
[358867001,1745496644758,-151.0,0.000249,7]
[358867002,1745496644768,-151.0,0.000249,7]
[358867003,1745496644778,-151.0,0.000249,7]
[358867004,1745496644788,-151.0,0.000249,7]
[358867005,1745496644798,-151.0,0.000249,7]
[358867006,1745496644808,-151.0,0.000249,7]
[358867007,1745496644818,-151.0,0.000249,7]
[358867008,1745496644828,-248.52394,0.000249,7]
[358867009,1745496644837,-151.0,0.000249,7]
[358867010,1745496644846,-283.929703,0.000249,7]
[358867011,1745496644856,-283.929703,0.000249,7]
[358867012,1745496644865,-804.23200758,0.0002497,2]
[358867013,1745496644876,-150.0,0.00025,2]
[358867014,1745496644886,-150.0,0.00025,2]
[358867015,1745496644896,-150.0,0.00025,2]
[358867016,1745496644906,-450.0,0.00025,2]
[358867017,1745496644915,-1500.0,0.00025,2]
[358867018,1745496644924,-150.88,0.00025195,2]
[358867019,1745496644934,-547.46,0.000253,2]
[358867020,1745496644945,-329.74,0.000253,2]
[358867021,1745496644955,-8509.51,0.000253,2]
[358867022,1745496644964,-505.08,0.00025342,2]
[358867023,1745496644974,-239.84119403,0.00025464,2]
[358867024,1745496644983,-823.0,0.00025699,2]
[358867025,1745496644994,-220.14,0.00026027,2]
[358867026,1745496645005,-3292.0,0.00026071,2]
[358867027,1745496645015,-3986.0,0.00026416,2]
[358867028,1745496645027,-5790.0,0.00026416,2]
[358867029,1745496645036,-198.901,0.00026416,2]
[358867030,1745496645047,-257.099,0.00026416,2]
[358867031,1745496645061,-876.0,0.0002652,2]
[358867032,1745496645071,-871.0,0.0002652,2]
[358867033,1745496645081,-150.0,0.0002662,2]
[358867034,1745496645090,-150.0,0.0002662,2]
[358867035,1745496645100,-150.0,0.0002662,2]
[358867036,1745496645109,-248.223,0.0002662,2]
[358867037,1745496645118,-150.0,0.0002662,2]
[358867038,1745496645128,-153.739,0.0002662,2]
[358867039,1745496645138,-150.0,0.0002662,2]
[358867040,1745496645147,-153.919,0.0002662,2]
[358867041,1745496645157,-981.055,0.0002662,2]
[358867042,1745496645167,-1335.0,0.0002662,2]
[358867043,1745496645178,-1285.0,0.0002662,2]
[358867044,1745496645187,-796.0,0.0002662,2]
[358867045,1745496645197,-1445.0,0.0002662,2]
[358867046,1745496645207,-578.0,0.0002662,2]
[358867047,1745496645217,-548.0,0.0002662,2]
[358867048,1745496645227,-910.0,0.0002662,2]
[358867049,1745496645237,-2060.0,0.0002662,2]
[358867050,1745496645247,-1133.0,0.0002662,2]
[358867051,1745496645257,-248.71531821,0.00026833,2]
[358867052,1745496645267,-150.88,0.00026875,2]
[358867053,1745496645277,-500.0,0.00027,2]
[358867054,1745496645287,-874.28,0.00027015,2]
[358867055,1745496645297,-1000.0,0.00027356,2]
[358867056,1745496645307,-220.14,0.00027397,2]
[358867057,1745496645316,-181.10945425,0.00027397,2]
[358867058,1745496645326,-700.0,0.00027397,2]
[358867059,1745496645336,-700.0,0.00027397,2]
[358867060,1745496645346,-700.0,0.00027397,2]
[358867061,1745496645357,-700.0,0.00027397,2]
[358867062,1745496645367,-700.0,0.00027397,2]
[358867063,1745496645378,-700.0,0.00027397,2]
[358867064,1745496645388,-700.0,0.00027397,2]
[358867065,1745496645397,-700.0,0.00027397,2]
[358867066,1745496645407,-700.0,0.00027397,2]
[358867067,1745496645418,-700.0,0.00027397,2]
[358867068,1745496645427,-8219.01,0.00027397,2]
[358867069,1745496645437,-499.31,0.00027397,2]
[358867070,1745496645448,-500.0,0.000274,2]
[358867071,1745496645458,-1106.0,0.000274,2]
[358867072,1745496645468,-508.0,0.000274,2]
[358867073,1745496645478,-1151.17,0.00027425,30]
[358867074,1745496645488,-193.84100925,0.000275,2]
[358867075,1745496645497,-1152.0,0.00027986,2]
[358867076,1745496645507,-276.78,0.00028,2]
[358867077,1745496645516,-25439.8877307,0.00028,2]
[358867078,1745496645525,-508.79775461,0.00028,2]
[358867079,1745496645534,-257.91778498,0.00028202,2]
[358867080,1745496645544,-4609.0,0.00028528,2]
[358867081,1745496645553,-150.88,0.00028554,2]
[358867082,1745496645565,-220.14,0.00028767,2]
[358867083,1745496645576,-8219.01,0.00028767,2]
[358867084,1745496645586,-505.08,0.00028767,2]
[358867085,1745496645595,-504.86494383,0.00028973,5]
[358867086,1745496645605,-150.0,0.00028973,5]
[358867087,1745496645614,-75046.09436778,0.00029,2]
[358867088,1745496645624,-54857.093596,0.00029,2]
[358867089,1745496645635,-260.06297073,0.00029,2]
[358867090,1745496645646,-151.0,0.00029,7]
[358867091,1745496645656,-151.0,0.00029,7]
[358867092,1745496645667,-151.0,0.00029,7]
[358867093,1745496645676,-151.0,0.00029,7]
[358867094,1745496645686,-151.0,0.00029,7]
[358867095,1745496645696,-151.0,0.00029,7]
[358867096,1745496645706,-153.404569,0.00029,7]
[358867097,1745496645717,-151.0,0.00029,7]
[358867098,1745496645726,-151.0,0.00029,7]
[358867099,1745496645735,-158.084154,0.00029,7]
[358867100,1745496645745,-151.0,0.00029,7]
[358867101,1745496645754,-519.730923,0.00029,7]
[358867102,1745496645765,-151.0,0.00029,7]
[358867103,1745496645774,-519.730923,0.00029,7]
[358867104,1745496645783,-151.0,0.00029,7]
[358867105,1745496645792,-151.0,0.00029,7]
[358867106,1745496645802,-152.185991,0.00029,7]
[358867107,1745496645814,-233.055602,0.00029,7]
[358867108,1745496645824,-226.201285,0.00029,7]
[358867109,1745496645835,-226.201285,0.00029,7]
[358867110,1745496645846,-151.0,0.00029,7]
[358867111,1745496645857,-151.0,0.00029,7]
[358867112,1745496645869,-156.765153,0.00029,7]
[358867113,1745496645879,-151.0,0.00029,7]
[358867114,1745496645888,-151.0,0.00029,7]
[358867115,1745496645899,-550.0,0.00029,2]
[358867116,1745496645909,-151.0,0.00029,7]
[358867117,1745496645921,-151.0,0.00029,7]
[358867118,1745496645931,-151.0,0.00029,7]
[358867119,1745496645942,-874.28,0.00029279,2]
[358867120,1745496645954,-3986.0,0.00029416,2]
[358867121,1745496645965,-5790.0,0.00029416,2]
[358867122,1745496645974,-152.0,0.00029416,2]
[358867123,1745496645984,-152.0,0.00029416,2]
[358867124,1745496645995,-876.0,0.0002952,2]
[358867125,1745496646004,-871.0,0.0002952,2]
[358867126,1745496646013,-151.0,0.00029521,5]
[358867127,1745496646023,-267.46074303,0.00029571,2]
[358867128,1745496646033,-150.0,0.0002962,2]
[358867129,1745496646042,-150.0,0.0002962,2]
[358867130,1745496646058,-918.0,0.0002962,2]
[358867131,1745496646068,-1335.0,0.0002962,2]
[358867132,1745496646078,-1285.0,0.0002962,2]
[358867134,1745496646087,-796.0,0.0002962,2]
[358867135,1745496646100,-1445.0,0.0002962,2]
[358867136,1745496646110,-578.0,0.0002962,2]
[358867137,1745496646119,-548.0,0.0002962,2]
[358867138,1745496646130,-910.0,0.0002962,2]
[358867139,1745496646141,-2060.0,0.0002962,2]
[358867140,1745496646151,-1133.0,0.0002962,2]
[358867141,1745496646161,-1000.0,0.00029842,2]
[358867142,1745496646171,-75764.81170579,0.000299,2]
[358867143,1745496646181,-13672.28468677,0.0002991,2]
[358867144,1745496646192,-150.0,0.00029973,5]
[358867146,1745496646202,-229.00888454,0.0002999,2]
[358867147,1745496646212,-5379.93769628,0.0003,10]
[358867148,1745496646222,-206385.46038782,0.0003,2]
[358867150,1745496646232,-396.50456201,0.0003,2]
[358867152,1745496646242,-982.72603345,0.0003,2]
[358867153,1745496646252,-194.2,0.0003,2]
[358867154,1745496646262,-160.71843665,0.0003,2]
[358867155,1745496646272,-1002.94300575,0.0003,2]
[358867156,1745496646282,-500.0,0.0003,2]
[358867157,1745496646292,-213.0,0.0003,2]
[358867159,1745496646302,-152.0,0.00030068,5]
[358867160,1745496646312,-12039.16,0.0003011,2]
[358867161,1745496646321,-220.14,0.00030136,2]
[358867162,1745496646332,-8219.01,0.00030137,2]
[358867163,1745496646342,-150.88,0.00030234,2]
[358867164,1745496646352,-1000.0,0.00030252,5]
[358867165,1745496646361,-1000.0,0.00030352,5]
[358867166,1745496646372,-1000.0,0.00030352,5]
[358867167,1745496646383,-1000.0,0.00030352,5]
[358867168,1745496646393,-594.5447301,0.00030352,5]
[358867169,1745496646402,-477.54,0.00030421,2]
[358867170,1745496646412,-1613.0,0.00030477,2]
[358867171,1745496646422,-153.0,0.00030616,5]
[358867172,1745496646432,-277.35679052,0.0003094,2]
[358867173,1745496646442,-120723.627515,0.00031,3]
[358867174,1745496646452,-600.0,0.00031,2]
[358867175,1745496646461,-154.0,0.00031164,5]
[358867176,1745496646471,-4299.0,0.00031217,3]
[358867177,1745496646480,-220.14,0.00031506,2]
[358867178,1745496646491,-8219.01,0.00031507,2]
[358867179,1745496646501,-151.0,0.00031531,7]
[358867180,1745496646514,-151.0,0.00031531,7]
[358867181,1745496646524,-151.0,0.00031531,7]
[358867182,1745496646534,-151.0,0.00031531,7]
[358867183,1745496646544,-151.0,0.00031531,7]
[358867184,1745496646554,-151.0,0.00031531,7]
[358867185,1745496646563,-874.28,0.00031543,2]
[358867186,1745496646573,-155.0,0.00031712,5]
[358867187,1745496646583,-3201.008738,0.00032,5]
[358867188,1745496646592,-1532.23628342,0.00032,2]
[358867189,1745496646602,-1076.79,0.00032,2]
[358867190,1745496646612,-151.0,0.000321,7]
[358867191,1745496646621,-151.0,0.000321,7]
[358867192,1745496646631,-505.08,0.00032192,2]
[358867193,1745496646641,-156.0,0.0003226,5]
[358867194,1745496646651,-287.61899177,0.00032309,2]
[358867195,1745496646660,-3986.0,0.00032416,2]
[358867196,1745496646670,-825.062,0.00032416,2]
[358867201,1745496646915,-152.0,0.00032416,2]
[358867202,1745496646926,-152.0,0.00032416,2]
[358867203,1745496646935,-283.929703,0.000325,7]
[358867204,1745496646945,-283.929703,0.000325,7]
[358867205,1745496646955,-871.0,0.0003252,2]
[358867206,1745496646964,-151.0,0.000326,7]
[358867207,1745496646974,-151.0,0.000326,7]
[358867208,1745496646985,-918.0,0.0003262,2]
[358867209,1745496646996,-1335.0,0.0003262,2]
[358867210,1745496647006,-1285.0,0.0003262,2]
[358867211,1745496647017,-796.0,0.0003262,2]
[358867212,1745496647027,-1445.0,0.0003262,2]
[358867213,1745496647039,-578.0,0.0003262,2]
[358867214,1745496647053,-548.0,0.0003262,2]
[358867215,1745496647064,-910.0,0.0003262,2]
[358867216,1745496647074,-2060.0,0.0003262,2]
[358867217,1745496647085,-1133.0,0.0003262,2]
[358867218,1745496647095,-160.0,0.00032712,5]
[358867219,1745496647104,-4654.13123799,0.000328,2]
[358867220,1745496647114,-150379.0,0.000328,2]
[358867221,1745496647124,-157.0,0.00032808,5]
[358867222,1745496647134,-220.14,0.00032876,2]
[358867223,1745496647150,-180.19,0.00032877,30]
[358867224,1745496647161,-150.0,0.00032877,2]
[358867225,1745496647171,-331.56,0.00032877,2]
[358867226,1745496647182,-8219.01,0.00032877,2]
[358867227,1745496647192,-150.0,0.00032877,5]
[358867228,1745496647202,-369.0,0.000329,2]
[358867229,1745496647214,-1106.57942304,0.000329,2]
[358867230,1745496647224,-507.93014161,0.000329,2]
[358867231,1745496647234,-4557.8989048,0.00033,2]
[358867232,1745496647244,-25129.23675559,0.00033,2]
[358867233,1745496647256,-151.0,0.00033,7]
[358867234,1745496647267,-650.0,0.00033,2]
[358867235,1745496647278,-213.0,0.00033,2]
[358867236,1745496647289,-1420.39221434,0.00033022,2]
[358867237,1745496647300,-216.62020948,0.000331,2]
[358867238,1745496647310,-200.0,0.00033151,2]
[358867239,1745496647321,-284.48545827,0.00033356,5]
[358867240,1745496647331,-1169.23130226,0.000335,2]
[358867241,1745496647342,-5566.0,0.000335,3]
[358867242,1745496647352,-298.26089446,0.00033678,2]
[358867243,1745496647362,-150.0,0.00033742,2]
[358867244,1745496647374,-5048.41,0.000338,7]
[358867245,1745496647384,-151.0,0.000338,7]
[358867246,1745496647395,-151.0,0.000338,7]
[358867247,1745496647405,-874.28,0.00033807,2]
[358867248,1745496647416,-4003.99095216,0.00034,2]
[358867249,1745496647426,-1076.79,0.00034,2]
[358867250,1745496647436,-220.14,0.00034246,2]
[358867251,1745496647447,-5566.0,0.000343,5]
[358867252,1745496647457,-5800.0,0.00034457,2]
[358867253,1745496647468,-5800.0,0.00034466,2]
[358867254,1745496647480,-5800.0,0.00034475,2]
[358867255,1745496647490,-5800.0,0.00034483,2]
[358867256,1745496647500,-5800.0,0.00034492,2]
[358867257,1745496647510,-5800.0,0.000345,2]
[358867258,1745496647520,-221.657161,0.000345,7]
[358867259,1745496647531,-151.0,0.000345,7]
[358867260,1745496647543,-519.730923,0.000345,7]
[358867261,1745496647554,-151.0,0.000345,7]
[358867262,1745496647565,-519.730923,0.000345,7]
[358867263,1745496647575,-151.0,0.000345,7]
[358867264,1745496647596,-151.0,0.000345,7]
[358867265,1745496647609,-226.201285,0.000345,7]
[358867266,1745496647620,-226.201285,0.000345,7]
[358867267,1745496647630,-151.0,0.000345,7]
[358867268,1745496647640,-151.0,0.000345,7]
[358867269,1745496647651,-151.0,0.000345,7]
[358867270,1745496647662,-151.0,0.000345,7]
[358867271,1745496647672,-151.0,0.000345,7]
[358867272,1745496647683,-151.0,0.000345,7]
[358867273,1745496647694,-151.0,0.000345,7]
[358867274,1745496647704,-150.0,0.00034548,10]
[358867275,1745496647715,-150.0,0.00034607,2]
[358867276,1745496647727,-8476.0,0.0003464,5]
[358867277,1745496647738,-26088.43042207,0.0003489,14]
[358867278,1745496647749,-153.751684,0.0003489,7]
[358867279,1745496647760,-151.0,0.0003489,7]
[358867280,1745496647771,-151.0,0.0003489,7]
[358867281,1745496647781,-151.0,0.0003489,7]
[358867282,1745496647794,-151.0,0.0003489,7]
[358867283,1745496647804,-156.418304,0.0003489,7]
[358867284,1745496647815,-6030.58593001,0.00035,2]
[358867285,1745496647826,-3900.0,0.00035,7]
[358867286,1745496647836,-1196.13370253,0.00035,2]
[358867287,1745496647847,-227.72919541,0.00035,2]
[358867288,1745496647857,-700.0,0.00035,2]
[358867289,1745496647867,-1076.79,0.00035,2]
[358867290,1745496647878,-15877.0,0.0003504,5]
[358867291,1745496647888,-309.29654756,0.00035047,2]
[358867292,1745496647899,-1191.03,0.00035068,2]
[358867293,1745496647910,-19075.38615599,0.0003511,30]
[358867294,1745496647920,-3986.0,0.00035416,2]
[358867295,1745496647930,-152.0,0.00035416,2]
[358867296,1745496647940,-152.0,0.00035416,2]
[358867297,1745496647950,-267.38103397,0.00035452,5]
[358867298,1745496647961,-150.0,0.00035472,2]
[358867299,1745496647971,-871.0,0.0003552,2]
[358867300,1745496647982,-220.14,0.00035616,2]
[358867301,1745496647992,-505.08,0.00035616,2]
[358867302,1745496648003,-918.0,0.0003562,2]
[358867303,1745496648014,-1335.0,0.0003562,2]
[358867304,1745496648030,-1167.103,0.0003562,2]
[358867305,1745496648041,-796.0,0.0003562,2]
[358867306,1745496648054,-1445.0,0.0003562,2]
[358867307,1745496648064,-578.0,0.0003562,2]
[358867308,1745496648075,-548.0,0.0003562,2]
[358867309,1745496648086,-910.0,0.0003562,2]
[358867310,1745496648098,-2060.0,0.0003562,2]
[358867311,1745496648109,-1133.0,0.0003562,2]
[358867312,1745496648121,-219959.22454235,0.0003593,7]
[358867313,1745496648133,-645.89970638,0.00036,2]
[358867314,1745496648143,-213.0,0.00036,2]
[358867315,1745496648154,-874.28,0.00036071,2]
[358867316,1745496648164,-1151.17,0.00036139,30]
[358867317,1745496648175,-150.0,0.00036337,2]
[358867318,1745496648186,-320.74051982,0.00036416,2]
[358867319,1745496648198,-192.55937111,0.00036795,30]
[358867320,1745496648209,-329.74,0.000368,2]
[358867321,1745496648220,-8509.51,0.000368,2]
[358867322,1745496648231,-220.14,0.00036986,2]
[358867323,1745496648241,-969.91,0.00037,2]
[358867324,1745496648252,-1076.79405514,0.00037,2]
[358867325,1745496648263,-750.0,0.00037,2]
[358867326,1745496648274,-192.55937111,0.00037178,30]
[358867327,1745496648284,-150.0,0.00037203,2]
[358867328,1745496648295,-2638.27082916,0.0003749,2]
[358867329,1745496648305,-192.55937111,0.00037589,30]
[358867330,1745496648316,-4204.43935602,0.0003759,2]
[358867331,1745496648326,-332.60791905,0.00037785,2]
[358867332,1745496648336,-168.39344355,0.000378,2]
[358867333,1745496648346,-172.14,0.00037808,2]
[358867334,1745496648356,-172.14,0.00037808,2]
[358867335,1745496648367,-172.14,0.00037808,2]
[358867336,1745496648377,-172.15742589,0.00037808,2]
[358867337,1745496648388,-2000.0,0.00037808,2]
[358867338,1745496648398,-200.0,0.00037808,2]
[358867339,1745496648409,-200.0,0.00037808,2]
[358867340,1745496648420,-388.60176191,0.00037808,2]
[358867341,1745496648431,-200.0,0.00037808,2]
[358867342,1745496648442,-175.0,0.00037808,2]
[358867343,1745496648453,-1054.376,0.0003788,49]
[358867344,1745496648464,-2981.8699233,0.00038,10]
[358867345,1745496648481,-1076.79,0.00038,2]
[358867346,1745496648493,-150.0,0.00038068,2]
[358867347,1745496648504,-200.0,0.00038186,2]
[358867348,1745496648515,-200.0,0.00038186,2]
[358867349,1745496648526,-200.0,0.00038186,2]
[358867350,1745496648538,-874.28,0.00038335,2]
[358867351,1745496648550,-220.14,0.00038356,2]
[358867352,1745496648560,-150.23279255,0.00038356,5]
[358867353,1745496648572,-369.76309055,0.000384,2]
[358867354,1745496648583,-2316.146,0.00038416,2]
[358867355,1745496648595,-152.0,0.00038416,2]
[358867356,1745496648606,-501.81,0.000385,3]
[358867357,1745496648617,-731.082,0.0003852,2]
[358867358,1745496648627,-200.0,0.00038568,2]
[358867359,1745496648638,-200.0,0.00038568,2]
[358867360,1745496648648,-200.0,0.00038568,2]
[358867361,1745496648658,-25841.21,0.000386,14]
[358867362,1745496648669,-5315.27,0.000386,14]
[358867363,1745496648680,-918.0,0.0003862,2]
[358867364,1745496648691,-362.194,0.0003862,2]
[358867365,1745496648702,-796.0,0.0003862,2]
[358867366,1745496648712,-1445.0,0.0003862,2]
[358867367,1745496648722,-578.0,0.0003862,2]
[358867368,1745496648732,-548.0,0.0003862,2]
[358867369,1745496648742,-910.0,0.0003862,2]
[358867370,1745496648752,-2060.0,0.0003862,2]
[358867371,1745496648763,-307.546,0.0003862,2]
[358867372,1745496648775,-762.0,0.000389,2]
[358867373,1745496648786,-150.0,0.00038933,2]
[358867374,1745496648796,-200.0,0.00038954,2]
[358867375,1745496648806,-200.0,0.00038954,2]
[358867376,1745496648816,-200.0,0.00038954,2]
[358867377,1745496648827,-7523.32125226,0.0003899,14]
[358867378,1745496648837,-357.599999,0.00039,58]
[358867379,1745496648847,-357.6,0.00039,58]
[358867380,1745496648858,-800.0,0.00039,2]
[358867381,1745496648868,-501.86,0.00039,3]
[358867382,1745496648878,-213.0,0.00039,2]
[358867383,1745496648889,-344.91441206,0.00039154,2]
[358867384,1745496648899,-606.59747725,0.00039215,120]
[358867385,1745496648914,-200.0,0.00039343,2]
[358867386,1745496648924,-501.86,0.000394,3]
[358867387,1745496648936,-210.08310309,0.0003962,2]
[358867388,1745496648947,-780.5,0.00039698,30]
[358867389,1745496648958,-220.14,0.00039726,2]
[358867390,1745496648969,-190.0,0.00039726,60]
[358867391,1745496648979,-150.0,0.00039798,2]
[358867392,1745496648990,-25008.08300016,0.0003988,2]
[358867393,1745496649000,-501.86,0.000399,3]
[358867394,1745496649011,-1000.11300753,0.000399,30]
[358867395,1745496649021,-182.0596015,0.000399,120]
[358867396,1745496649032,-500.0,0.00039973,5]
[358867397,1745496649043,-532.94789685,0.0004,4]
[358867398,1745496649057,-6500.0,0.0004,3]
[358867399,1745496649067,-932.30454894,0.0004,5]
[358867400,1745496649078,-591.28435542,0.0004,2]
[358867401,1745496649089,-12401.39085731,0.0004,10]
[358867402,1745496649099,-16653.93951551,0.0004,2]
[358867403,1745496649110,-191.23785487,0.0004,2]
[358867404,1745496649121,-379.93358051,0.0004,2]
[358867405,1745496649132,-1235.89534211,0.0004,10]
[358867406,1745496649143,-5081.17376087,0.0004,2]
[358867407,1745496649154,-212.94016022,0.0004,2]
[358867408,1745496649166,-514.77242489,0.0004,2]
[358867409,1745496649178,-12641.31005913,0.0004,15]
[358867410,1745496649190,-6438.31135698,0.0004,14]
[358867411,1745496649201,-53906.64883888,0.0004,120]
[358867412,1745496649212,-200.0,0.0004,61]
[358867413,1745496649223,-1000.0,0.0004,5]
[358867414,1745496649234,-1000.0,0.0004,6]
[358867415,1745496649244,-1000.0,0.0004,6]
[358867416,1745496649255,-1000.0,0.0004,6]
[358867417,1745496649265,-1000.0,0.0004,12]
[358867418,1745496649277,-1006.0,0.0004,4]
[358867419,1745496649287,-200.0,0.0004,61]
[358867420,1745496649298,-153.82,0.0004,30]
[358867421,1745496649308,-153.82,0.0004,30]
[358867422,1745496649319,-2000.0,0.0004,120]
[358867423,1745496649330,-300.0,0.0004,2]
[358867424,1745496649340,-500.0,0.0004,7]
[358867425,1745496649362,-300.0,0.0004,2]
[358867426,1745496649375,-1500.0,0.00040271,5]
[358867427,1745496649387,-501.86,0.000403,3]
[358867428,1745496649398,-1538.60729262,0.00040371,5]
[358867429,1745496649410,-1500.0,0.00040371,5]
[358867430,1745496649420,-283.28822265,0.00040371,5]
[358867431,1745496649431,-277.13906868,0.000404,2]
[358867432,1745496649443,-300.0,0.000404,2]
[358867433,1745496649454,-25841.21,0.000405,14]
[358867434,1745496649464,-5315.27,0.000405,14]
[358867435,1745496649475,-357.6762453,0.00040523,2]
[358867436,1745496649486,-874.28,0.00040599,2]
[358867437,1745496649498,-150.0,0.00040663,2]
[358867438,1745496649508,-501.86,0.000408,3]
[358867439,1745496649519,-300.0,0.000408,2]
[358867440,1745496649529,-200.0,0.00041,64]
[358867441,1745496649541,-207.2,0.00041,28]
[358867442,1745496649552,-834.0,0.00041,8]
[358867443,1745496649563,-1000.0,0.00041,8]
[358867444,1745496649764,-200.0,0.00041,64]
[358867445,1745496649774,-850.0,0.00041,2]
[358867446,1745496649784,-625.0,0.00041,14]
[358867447,1745496649795,-400.0,0.0004107,3]
[358867448,1745496649804,-400.0,0.0004107,3]
[358867449,1745496649813,-400.0,0.0004107,3]
[358867450,1745496649824,-700.0,0.0004107,3]
[358867451,1745496649833,-700.0,0.0004107,3]
[358867452,1745496649843,-700.0,0.0004107,3]
[358867453,1745496649853,-256.10394684,0.0004107,2]
[358867454,1745496649864,-50139.72270751,0.0004108,2]
[358867455,1745496649875,-500.0,0.00041095,2]
[358867456,1745496649887,-500.0,0.00041095,2]
[358867457,1745496649899,-3500.0,0.00041095,10]
[358867458,1745496649910,-500.0,0.00041095,30]
[358867459,1745496649921,-500.0,0.00041095,30]
[358867460,1745496649930,-500.0,0.00041095,30]
[358867461,1745496649940,-500.0,0.00041095,30]
[358867462,1745496649951,-500.0,0.00041095,30]
[358867463,1745496649962,-500.0,0.00041095,30]
[358867464,1745496649971,-500.0,0.00041095,30]
[358867465,1745496649981,-500.0,0.00041095,30]
[358867466,1745496649990,-500.0,0.00041095,30]
[358867467,1745496650000,-500.0,0.00041095,30]
[358867468,1745496650010,-500.0,0.00041095,30]
[358867469,1745496650020,-500.0,0.00041095,30]
[358867470,1745496650030,-500.0,0.00041095,30]
[358867471,1745496650039,-500.0,0.00041095,30]
[358867472,1745496650051,-500.0,0.00041095,30]